fUST/lending_fUST_20250105
["ID","MTS","AMOUNT","RATE_DAILY","PERIOD"]
[347722531,1736081433891,-500.0,0.00019178,2]
[347722532,1736081433901,-500.0,0.00019178,2]
[347722533,1736081433911,-500.0,0.00019178,2]
[347722534,1736081433920,-500.0,0.00019178,2]
[347722535,1736081433930,-500.0,0.00019178,2]
[347722536,1736081433939,-500.0,0.00019178,2]
[347722537,1736081434135,-3576.88,0.00019178,2]
[347722538,1736081434146,-500.0,0.00019178,2]
[347722539,1736081434155,-500.0,0.00019178,2]
[347722540,1736081434165,-500.0,0.00019178,2]
[347722541,1736081434174,-500.0,0.00019178,2]
[347722542,1736081434184,-500.0,0.00019178,2]
[347722543,1736081434194,-500.0,0.00019178,2]
[347722544,1736081434204,-500.0,0.00019178,2]
[347722545,1736081434213,-500.0,0.00019178,2]
[347722546,1736081434223,-500.0,0.00019178,2]
[347722547,1736081434232,-500.0,0.00019178,2]
[347722548,1736081434242,-500.0,0.00019178,2]
[347722549,1736081434252,-512.88094475,0.00019178,60]
[347722550,1736081434262,-500.0,0.00019178,2]
[347722551,1736081434272,-500.0,0.00019178,2]
[347722552,1736081434281,-500.0,0.00019178,2]
[347722553,1736081434291,-500.0,0.00019178,2]
[347722554,1736081434301,-500.0,0.00019178,2]
[347722555,1736081434311,-500.0,0.00019178,2]
[347722556,1736081434321,-500.0,0.00019178,2]
[347722557,1736081434330,-500.0,0.00019178,2]
[347722558,1736081434341,-500.0,0.00019178,2]
[347722559,1736081434350,-500.0,0.00019178,2]
[347722560,1736081434360,-500.0,0.00019178,2]
[347722561,1736081434377,-526.8,0.00019178,2]
[347722562,1736081434387,-576.19,0.00019178,2]
[347722563,1736081434397,-500.0,0.00019178,2]
[347722564,1736081434407,-500.0,0.00019178,2]
[347722565,1736081434416,-1661.43,0.00019178,2]
[347722566,1736081434426,-4729.32,0.00019178,2]
[347722567,1736081434435,-500.0,0.00019178,2]
[347722568,1736081434445,-500.0,0.00019178,2]
[347722569,1736081434455,-500.0,0.00019178,2]
[347722570,1736081434464,-500.0,0.00019178,2]
[347722571,1736081434474,-500.0,0.00019178,2]
[347722572,1736081434483,-500.0,0.00019178,2]
[347722573,1736081434493,-1635.29,0.00019178,2]
[347722574,1736081434503,-500.0,0.00019178,2]
[347722575,1736081434513,-500.0,0.00019178,2]
[347722576,1736081434524,-500.0,0.00019178,2]
[347722577,1736081434534,-906.02,0.00019178,2]
[347722578,1736081434544,-500.0,0.00019178,2]
[347722579,1736081434555,-22412.33,0.00019178,2]
[347722580,1736081434565,-500.0,0.00019178,2]
[347722581,1736081434575,-5438.98,0.00019178,2]
[347722582,1736081434586,-500.0,0.00019178,2]
[347722583,1736081434596,-1205.56,0.00019178,2]
[347722584,1736081434606,-151.0,0.00019178,2]
[347722585,1736081434616,-151.0,0.00019178,2]
[347722586,1736081434626,-151.0,0.00019178,2]
[347722587,1736081434637,-500.0,0.00019178,2]
[347722588,1736081434647,-151.0,0.00019178,2]
[347722589,1736081434657,-193.386762,0.00019178,2]
[347722590,1736081434666,-500.0,0.00019178,2]
[347722591,1736081434677,-2568.0,0.00019178,2]
[347722592,1736081434687,-500.0,0.00019178,2]
[347722593,1736081434696,-1117.57,0.00019178,2]
[347722594,1736081434706,-663.28,0.00019178,2]
[347722595,1736081434716,-500.0,0.00019178,2]
[347722596,1736081434725,-500.0,0.00019178,2]
[347722597,1736081434735,-630.92495434,0.00019178,2]
[347722598,1736081434744,-500.0,0.00019178,2]
[347722599,1736081434753,-955.54,0.00019178,2]
[347722600,1736081434763,-500.0,0.00019178,2]
[347722601,1736081434778,-500.0,0.00019178,2]
[347722602,1736081434787,-500.0,0.00019178,2]
[347722603,1736081434797,-500.0,0.00019178,2]
[347722604,1736081434806,-500.0,0.00019178,2]
[347722605,1736081434816,-500.0,0.00019178,2]
[347722606,1736081434826,-500.0,0.00019178,2]
[347722607,1736081434835,-500.0,0.00019178,2]
[347722608,1736081434844,-500.0,0.00019178,2]
[347722609,1736081434854,-965.78,0.00019178,2]
[347722610,1736081434864,-500.0,0.00019178,2]
[347722611,1736081434873,-500.0,0.00019178,2]
[347722612,1736081434883,-500.0,0.00019178,2]
[347722613,1736081434892,-500.0,0.00019178,2]
[347722614,1736081434901,-500.0,0.00019178,2]
[347722615,1736081434911,-500.0,0.00019178,2]
[347722616,1736081434920,-500.0,0.00019178,2]
[347722617,1736081434930,-500.0,0.00019178,2]
[347722618,1736081434939,-500.0,0.00019178,2]
[347722619,1736081434949,-500.0,0.00019178,2]
[347722620,1736081434958,-500.0,0.00019178,2]
[347722621,1736081434967,-533.85,0.00019178,2]
[347722622,1736081434977,-500.0,0.00019178,2]
[347722623,1736081434987,-500.0,0.00019178,2]
[347722624,1736081434996,-500.0,0.00019178,2]
[347722625,1736081435006,-500.0,0.00019178,2]
[347722626,1736081435015,-500.0,0.00019178,2]
[347722627,1736081435024,-344.77588925,0.00019178,2]
[347722628,1736081435033,-500.0,0.00019178,2]
[347722629,1736081435042,-500.0,0.00019178,2]
[347722630,1736081435052,-646.78,0.00019178,2]
[347722631,1736081435063,-500.0,0.00019178,2]
[347722632,1736081435073,-1744.83,0.00019178,2]
[347722633,1736081435082,-500.0,0.00019178,2]
[347722634,1736081435092,-687.26,0.00019178,2]
[347722635,1736081435102,-500.0,0.00019178,2]
[347722636,1736081435112,-500.0,0.00019178,2]
[347722637,1736081435122,-500.0,0.00019178,2]
[347722638,1736081435131,-500.0,0.00019178,2]
[347722639,1736081435141,-500.0,0.00019178,2]
[347722640,1736081435150,-1900.51,0.00019178,2]
[347722641,1736081435160,-1003.49,0.00019178,2]
[347722642,1736081435170,-273.16240629,0.00019178,2]
[347722643,1736081435180,-500.0,0.00019178,2]
[347722644,1736081435190,-500.0,0.00019178,2]
[347722645,1736081435200,-639.09663993,0.00019178,2]
[347722646,1736081435210,-500.0,0.00019178,2]
[347722647,1736081435219,-500.0,0.00019178,2]
[347722648,1736081435228,-631.91,0.00019178,2]
[347722649,1736081435239,-500.0,0.00019178,2]
[347722650,1736081435249,-520.75,0.00019178,2]
[347722651,1736081435258,-500.0,0.00019178,2]
[347722652,1736081435268,-821.15,0.00019178,2]
[347722653,1736081435278,-500.0,0.00019178,2]
[347722654,1736081435287,-911.66,0.00019178,2]
[347722655,1736081435297,-500.0,0.00019178,2]
[347722656,1736081435306,-500.0,0.00019178,2]
[347722657,1736081435315,-500.0,0.00019178,2]
[347722658,1736081435325,-500.0,0.00019178,2]
[347722659,1736081435334,-500.0,0.00019178,2]
[347722660,1736081435343,-500.0,0.00019178,2]
[347722661,1736081435352,-500.0,0.00019178,2]
[347722662,1736081435362,-500.0,0.00019178,2]
[347722663,1736081435371,-500.0,0.00019178,2]
[347722664,1736081435380,-160.667897,0.00019178,2]
[347722665,1736081435390,-302.48564733,0.0001919,2]
[347722666,1736081435400,-250.98,0.000192,2]
[347722667,1736081435409,-241.4609134,0.000192,2]
[347722668,1736081435418,-704.8378281,0.000192,2]
[347722669,1736081435428,-218.45764798,0.00019215,2]
[347722670,1736081435437,-218.45764798,0.00019283,2]
[347722671,1736081435447,-150.0,0.000193,2]
[347722672,1736081435457,-502.91497246,0.00019314,2]
[347722673,1736081435466,-218.45764798,0.00019352,2]
[347722674,1736081435475,-2521.44766631,0.00019352,2]
[347722675,1736081435484,-383.42727277,0.00019436,2]
[347722676,1736081435493,-500.0,0.00019451,3]
[347722677,1736081435503,-500.0,0.00019451,3]
[347722678,1736081435512,-500.0,0.00019451,3]
[347722679,1736081435522,-500.0,0.00019451,3]
[347722680,1736081435532,-500.0,0.00019451,3]
[347722681,1736081435541,-338.51483277,0.00019451,3]
[347722682,1736081435551,-502.91497246,0.00019452,2]
[347722683,1736081435560,-500.0,0.00019452,3]
[347722684,1736081435570,-500.0,0.00019452,3]
[347722685,1736081435579,-506.94376656,0.00019452,3]
[347722686,1736081435588,-253.88891264,0.00019452,3]
[347722687,1736081435597,-500.0,0.00019452,3]
[347722688,1736081435607,-500.0,0.00019452,3]
[347722689,1736081435616,-500.0,0.00019452,3]
[347722690,1736081435625,-500.0,0.00019452,3]
[347722691,1736081435635,-500.0,0.00019452,3]
[347722692,1736081435644,-502.81297496,0.00019452,3]
[347722693,1736081435654,-500.0,0.00019452,3]
[347722694,1736081435663,-500.0,0.00019452,3]
[347722695,1736081435672,-500.0,0.00019452,3]
[347722696,1736081435682,-509.52,0.00019452,3]
[347722697,1736081435691,-500.0,0.00019452,3]
[347722698,1736081435701,-500.0,0.00019452,3]
[347722699,1736081435710,-329.07882463,0.00019452,3]
[347722700,1736081435720,-500.0,0.00019452,3]
[347722701,1736081435729,-500.0,0.00019452,3]
[347722702,1736081435739,-500.0,0.00019452,3]
[347722703,1736081435748,-500.0,0.00019452,3]
[347722704,1736081435758,-500.0,0.00019452,3]
[347722705,1736081435768,-502.78210461,0.00019452,3]
[347722706,1736081435780,-500.0,0.00019452,3]
[347722707,1736081435789,-500.0,0.00019452,3]
[347722708,1736081435800,-500.0,0.00019452,3]
[347722709,1736081435809,-500.0,0.00019452,3]
[347722710,1736081435819,-500.0,0.00019452,3]
[347722711,1736081435828,-500.0,0.00019452,3]
[347722712,1736081435836,-500.0,0.00019452,3]
[347722713,1736081435846,-500.0,0.00019452,3]
[347722714,1736081435855,-500.0,0.00019452,3]
[347722715,1736081435865,-500.0,0.00019452,3]
[347722716,1736081435875,-500.0,0.00019452,3]
[347722717,1736081435884,-500.0,0.00019452,3]
[347722718,1736081435893,-702.21,0.00019452,3]
[347722719,1736081435902,-587.92,0.00019452,3]
[347722720,1736081435912,-500.0,0.00019452,3]
[347722721,1736081435921,-500.0,0.00019452,3]
[347722722,1736081435930,-592.52,0.00019452,3]
[347722723,1736081435939,-500.0,0.00019452,3]
[347722724,1736081435948,-500.0,0.00019452,3]
[347722725,1736081435958,-500.0,0.00019452,3]
[347722726,1736081435967,-500.0,0.00019452,3]
[347722727,1736081435977,-500.0,0.00019452,3]
[347722728,1736081435986,-500.0,0.00019452,3]
[347722729,1736081435996,-500.0,0.00019452,3]
[347722730,1736081436005,-500.0,0.00019452,3]
[347722731,1736081436015,-500.0,0.00019452,3]
[347722732,1736081436025,-500.0,0.00019452,3]
[347722733,1736081436034,-500.0,0.00019452,3]
[347722734,1736081436044,-494.13787629,0.00019452,3]
[347722735,1736081436054,-500.0,0.00019452,3]
[347722736,1736081436064,-500.0,0.00019452,3]
[347722737,1736081436073,-500.0,0.00019452,3]
[347722738,1736081436085,-500.0,0.00019452,3]
[347722739,1736081436094,-617.2,0.00019452,3]
[347722740,1736081436103,-618.1,0.00019452,3]
[347722741,1736081436114,-500.0,0.00019452,3]
[347722742,1736081436124,-504.30998535,0.00019452,3]
[347722743,1736081436135,-500.0,0.00019452,3]
[347722744,1736081436144,-576.64,0.00019452,3]
[347722745,1736081436154,-512.32525403,0.00019452,3]
[347722746,1736081436163,-500.0,0.00019452,3]
[347722747,1736081436172,-500.0,0.00019452,3]
[347722748,1736081436182,-500.0,0.00019452,3]
[347722749,1736081436191,-500.0,0.00019452,3]
[347722750,1736081436200,-500.0,0.00019452,3]
[347722751,1736081436210,-500.0,0.00019452,3]
[347722752,1736081436219,-500.0,0.00019452,3]
[347722753,1736081436228,-500.0,0.00019452,3]
[347722754,1736081436238,-500.0,0.00019452,3]
[347722755,1736081436247,-500.0,0.00019452,3]
[347722756,1736081436257,-500.0,0.00019452,3]
[347722757,1736081436266,-500.0,0.00019452,3]
[347722758,1736081436275,-500.0,0.00019452,3]
[347722759,1736081436285,-500.0,0.00019452,3]
[347722760,1736081436294,-628.02,0.00019452,3]
[347722761,1736081436303,-500.0,0.00019452,3]
[347722762,1736081436312,-500.0,0.00019452,3]
[347722763,1736081436322,-500.0,0.00019452,3]
[347722764,1736081436331,-500.0,0.00019452,3]
[347722765,1736081436341,-500.0,0.00019452,3]
[347722766,1736081436351,-500.0,0.00019452,3]
[347722767,1736081436361,-500.0,0.00019452,3]
[347722768,1736081436370,-500.0,0.00019452,3]
[347722769,1736081436380,-500.0,0.00019452,3]
[347722770,1736081436390,-500.0,0.00019452,3]
[347722771,1736081436403,-544.88,0.00019452,3]
[347722772,1736081436413,-500.0,0.00019452,3]
[347722773,1736081436423,-500.0,0.00019452,3]
[347722774,1736081436433,-500.0,0.00019452,3]
[347722775,1736081436442,-500.0,0.00019452,3]
[347722776,1736081436452,-500.0,0.00019452,3]
[347722777,1736081436461,-500.0,0.00019452,3]
[347722778,1736081436471,-500.0,0.00019452,3]
[347722779,1736081436481,-500.0,0.00019452,3]
[347722780,1736081436490,-500.0,0.00019452,3]
[347722781,1736081436499,-500.0,0.00019452,3]
[347722782,1736081436508,-500.0,0.00019452,3]
[347722783,1736081436518,-500.0,0.00019452,3]
[347722784,1736081436527,-500.0,0.00019452,3]
[347722785,1736081436537,-500.0,0.00019452,3]
[347722786,1736081436547,-500.0,0.00019452,3]
[347722787,1736081436557,-500.0,0.00019452,3]
[347722788,1736081436567,-500.0,0.00019452,2]
[347722789,1736081436576,-500.0,0.00019452,3]
[347722790,1736081436586,-500.0,0.00019452,3]
[347722791,1736081436595,-500.0,0.00019452,3]
[347722792,1736081436605,-500.0,0.00019452,3]
[347722793,1736081436615,-500.0,0.00019452,3]
[347722794,1736081436624,-2229.23,0.00019452,3]
[347722795,1736081436634,-510.09928644,0.00019452,3]
[347722796,1736081436643,-500.0,0.00019452,3]
[347722797,1736081436653,-500.0,0.00019452,3]
[347722798,1736081436662,-3576.88,0.00019452,3]
[347722799,1736081436672,-500.0,0.00019452,3]
[347722800,1736081436681,-500.0,0.00019452,3]
[347722801,1736081436691,-500.0,0.00019452,3]
[347722802,1736081436700,-500.0,0.00019452,3]
[347722803,1736081436710,-500.0,0.00019452,3]
[347722804,1736081436719,-500.0,0.00019452,3]
[347722805,1736081436729,-500.0,0.00019452,3]
[347722806,1736081436738,-500.0,0.00019452,3]
[347722807,1736081436748,-500.0,0.00019452,3]
[347722808,1736081436757,-500.0,0.00019452,3]
[347722809,1736081436766,-526.8,0.00019452,3]
[347722810,1736081436780,-576.19,0.00019452,3]
[347722811,1736081436789,-500.0,0.00019452,3]
[347722812,1736081436799,-500.0,0.00019452,3]
[347722813,1736081436808,-1661.43,0.00019452,3]
[347722814,1736081436819,-4729.32,0.00019452,3]
[347722815,1736081436828,-500.0,0.00019452,3]
[347722816,1736081436838,-500.0,0.00019452,3]
[347722817,1736081436848,-500.0,0.00019452,3]
[347722818,1736081436858,-500.0,0.00019452,3]
[347722819,1736081436867,-500.0,0.00019452,3]
[347722820,1736081436876,-500.0,0.00019452,3]
[347722821,1736081436886,-1635.29,0.00019452,3]
[347722822,1736081436895,-500.0,0.00019452,3]
[347722823,1736081436905,-500.0,0.00019452,3]
[347722824,1736081436914,-500.0,0.00019452,3]
[347722825,1736081436923,-906.02,0.00019452,3]
[347722826,1736081436933,-500.0,0.00019452,3]
[347722827,1736081436943,-22412.33,0.00019452,3]
[347722828,1736081436952,-500.0,0.00019452,3]
[347722829,1736081436961,-5438.98,0.00019452,3]
[347722830,1736081436970,-500.0,0.00019452,3]
[347722831,1736081436979,-1205.56,0.00019452,3]
[347722832,1736081436989,-500.0,0.00019452,3]
[347722833,1736081436998,-500.0,0.00019452,3]
[347722834,1736081437007,-2568.0,0.00019452,3]
[347722835,1736081437124,-500.0,0.00019452,3]
[347722836,1736081437134,-1117.57,0.00019452,3]
[347722837,1736081437144,-663.28,0.00019452,3]
[347722838,1736081437153,-500.0,0.00019452,3]
[347722839,1736081437162,-214.17165731,0.00019452,3]
[347722840,1736081437171,-500.0,0.00019452,3]
[347722841,1736081437181,-955.54,0.00019452,3]
[347722842,1736081437190,-587.12,0.00019452,3]
[347722843,1736081437199,-500.0,0.00019452,3]
[347722844,1736081437208,-500.1106044,0.00019452,3]
[347722845,1736081437217,-500.0,0.00019452,3]
[347722846,1736081437226,-500.0,0.00019452,3]
[347722847,1736081437235,-500.0,0.00019452,3]
[347722848,1736081437245,-500.0,0.00019452,3]
[347722849,1736081437254,-500.0,0.00019452,3]
[347722850,1736081437264,-965.78,0.00019452,3]
[347722851,1736081437274,-500.0,0.00019452,3]
[347722852,1736081437284,-500.0,0.00019452,3]
[347722853,1736081437293,-500.0,0.00019452,3]
[347722854,1736081437302,-577.4155288,0.00019452,3]
[347722855,1736081437312,-500.0,0.00019452,3]
[347722856,1736081437321,-500.0,0.00019452,3]
[347722857,1736081437330,-500.0,0.00019452,3]
[347722858,1736081437340,-500.0,0.00019452,3]
[347722859,1736081437349,-500.0,0.00019452,3]
[347722860,1736081437359,-500.0,0.00019452,3]
[347722861,1736081437368,-500.0,0.00019452,3]
[347722863,1736081437378,-500.0,0.00019452,3]
[347722865,1736081437387,-533.85,0.00019452,3]
[347722867,1736081437397,-500.0,0.00019452,3]
[347722868,1736081437406,-500.0,0.00019452,3]
[347722869,1736081437416,-500.0,0.00019452,3]
[347722870,1736081437425,-500.0,0.00019452,3]
[347722873,1736081437435,-500.0,0.00019452,3]
[347722875,1736081437444,-500.0,0.00019452,3]
[347722877,1736081437454,-556.18,0.00019452,3]
[347722878,1736081437464,-646.78,0.00019452,3]
[347722879,1736081437473,-500.0,0.00019452,3]
[347722880,1736081437483,-1744.83,0.00019452,3]
[347722881,1736081437493,-500.0,0.00019452,3]
[347722882,1736081437503,-687.26,0.00019452,3]
[347722883,1736081437512,-500.0,0.00019452,3]
[347722884,1736081437523,-500.0,0.00019452,3]
[347722885,1736081437532,-500.0,0.00019452,3]
[347722886,1736081437542,-500.0,0.00019452,3]
[347722887,1736081437551,-1900.51,0.00019452,3]
[347722888,1736081437561,-500.0,0.00019452,3]
[347722889,1736081437571,-1003.49,0.00019452,3]
[347722890,1736081437580,-500.0,0.00019452,3]
[347722891,1736081437590,-500.0,0.00019452,3]
[347722892,1736081437599,-500.0,0.00019452,3]
[347722893,1736081437609,-500.0,0.00019452,3]
[347722894,1736081437618,-500.0,0.00019452,3]
[347722895,1736081437628,-631.91,0.00019452,3]
[347722896,1736081437639,-520.75,0.00019452,3]
[347722897,1736081437648,-821.15,0.00019452,3]
[347722898,1736081437658,-593.68,0.00019452,3]
[347722899,1736081437667,-911.66,0.00019452,3]
[347722900,1736081437677,-500.0,0.00019452,3]
[347722901,1736081437686,-500.0,0.00019452,3]
[347722902,1736081437696,-500.0,0.00019452,3]
[347722903,1736081437705,-500.0,0.00019452,3]
[347722904,1736081437715,-500.0,0.00019452,3]
[347722905,1736081437724,-500.0,0.00019452,3]
[347722906,1736081437734,-500.0,0.00019452,3]
[347722907,1736081437743,-500.0,0.00019452,3]
[347722908,1736081437752,-500.0,0.00019452,3]
[347722909,1736081437762,-502.91497246,0.0001959,2]
[347722910,1736081437774,-150.0,0.00019623,2]
[347722911,1736081437783,-535.0,0.00019623,2]
[347722912,1736081437793,-1458.039,0.00019623,2]
[347722913,1736081437802,-500.0,0.00019721,2]
[347722914,1736081437812,-740.37156395,0.00019721,2]
[347722915,1736081437821,-1000.0,0.00019721,2]
[347722916,1736081437831,-345.14232056,0.00019721,2]
[347722917,1736081437841,-500.0,0.00019726,3]
[347722918,1736081437850,-500.0,0.00019726,3]
[347722919,1736081437859,-500.0,0.00019726,3]
[347722920,1736081437868,-500.0,0.00019726,3]
[347722921,1736081437878,-500.0,0.00019726,3]
[347722922,1736081437888,-500.0,0.00019726,3]
[347722923,1736081437897,-500.0,0.00019726,3]
[347722924,1736081437906,-500.0,0.00019726,3]
[347722925,1736081437915,-500.0,0.00019726,3]
[347722926,1736081437925,-191.5,0.00019726,3]
[347722927,1736081437934,-702.21,0.00019726,3]
[347722929,1736081437943,-500.0,0.00019726,3]
[347722931,1736081437953,-500.0,0.00019726,3]
[347722933,1736081437962,-500.0,0.00019726,3]
[347722935,1736081437972,-458.78100073,0.00019726,3]
[347722936,1736081437982,-500.0,0.00019726,3]
[347722938,1736081437991,-500.0,0.00019726,3]
[347722941,1736081438001,-500.0,0.00019726,3]
[347722944,1736081438010,-500.0,0.00019726,3]
[347722947,1736081438019,-500.0,0.00019726,3]
[347722950,1736081438028,-500.0,0.00019726,3]
[347722953,1736081438038,-500.0,0.00019726,3]
[347722955,1736081438047,-618.1,0.00019726,3]
[347722957,1736081438056,-500.0,0.00019726,3]
[347722959,1736081438065,-500.0,0.00019726,3]
[347722961,1736081438074,-423.48807358,0.00019726,3]
[347722963,1736081438084,-500.0,0.00019726,3]
[347722965,1736081438093,-500.0,0.00019726,3]
[347722967,1736081438102,-500.0,0.00019726,3]
[347722969,1736081438111,-500.0,0.00019726,3]
[347722971,1736081438120,-616.96025997,0.00019726,3]
[347722973,1736081438129,-500.0,0.00019726,3]
[347722975,1736081438138,-500.0,0.00019726,3]
[347722977,1736081438147,-618.47,0.00019726,3]
[347722979,1736081438156,-500.0,0.00019726,3]
[347722980,1736081438165,-500.0,0.00019726,3]
[347722982,1736081438174,-500.0,0.00019726,3]
[347722985,1736081438185,-500.0,0.00019726,3]
[347722986,1736081438194,-500.0,0.00019726,3]
[347722988,1736081438203,-544.88,0.00019726,3]
[347722991,1736081438213,-500.0,0.00019726,3]
[347722992,1736081438222,-500.0,0.00019726,3]
[347722995,1736081438231,-500.0,0.00019726,3]
[347722997,1736081438241,-500.0,0.00019726,3]
[347722998,1736081438250,-500.0,0.00019726,3]
[347723000,1736081438259,-500.0,0.00019726,3]
[347723003,1736081438269,-500.0,0.00019726,3]
[347723005,1736081438279,-500.0,0.00019726,3]
[347723007,1736081438288,-500.0,0.00019726,2]
[347723009,1736081438297,-2229.23,0.00019726,3]
[347723011,1736081438307,-500.0,0.00019726,3]
[347723012,1736081438316,-500.0,0.00019726,3]
[347723014,1736081438325,-3576.88,0.00019726,3]
[347723016,1736081438335,-500.0,0.00019726,3]
[347723019,1736081438345,-303.34,0.00019726,3]
[347723021,1736081438354,-500.0,0.00019726,3]
[347723023,1736081438363,-500.0,0.00019726,3]
[347723025,1736081438372,-500.0,0.00019726,3]
[347723027,1736081438383,-576.19,0.00019726,3]
[347723029,1736081438392,-526.8,0.00019726,3]
[347723031,1736081438401,-500.0,0.00019726,3]
[347723033,1736081438411,-1661.43,0.00019726,3]
[347723035,1736081438420,-4729.32,0.00019726,3]
[347723037,1736081438433,-500.0,0.00019726,3]
[347723039,1736081438446,-500.0,0.00019726,3]
[347723042,1736081438459,-500.0,0.00019726,3]
[347723044,1736081438471,-1635.29,0.00019726,3]
[347723047,1736081438484,-175.76,0.00019726,3]
[347723049,1736081438495,-500.0,0.00019726,3]
[347723051,1736081438505,-500.0,0.00019726,3]
[347723053,1736081438516,-906.02,0.00019726,3]
[347723055,1736081438529,-22412.33,0.00019726,3]
[347723057,1736081438540,-5438.98,0.00019726,3]
[347723060,1736081438552,-1205.56,0.00019726,3]
[347723062,1736081438564,-2568.0,0.00019726,3]
[347723064,1736081438576,-1117.57,0.00019726,3]
[347723066,1736081438588,-663.28,0.00019726,3]
[347723069,1736081438599,-955.54,0.00019726,3]
[347723071,1736081438611,-500.0,0.00019726,3]
[347723073,1736081438623,-500.0,0.00019726,3]
[347723076,1736081438635,-965.78,0.00019726,3]
[347723078,1736081438647,-500.0,0.00019726,3]
[347723080,1736081438658,-500.0,0.00019726,3]
[347723082,1736081438669,-500.0,0.00019726,3]
[347723085,1736081438681,-500.0,0.00019726,3]
[347723087,1736081438692,-500.0,0.00019726,3]
[347723089,1736081438702,-533.85,0.00019726,3]
[347723091,1736081438713,-500.0,0.00019726,3]
[347723093,1736081438725,-500.0,0.00019726,3]
[347723095,1736081438736,-500.0,0.00019726,3]
[347723098,1736081438747,-500.0,0.00019726,3]
[347723100,1736081438759,-646.78,0.00019726,3]
[347723102,1736081438773,-1744.83,0.00019726,3]
[347723103,1736081438783,-500.0,0.00019726,3]
[347723105,1736081438793,-687.26,0.00019726,3]
[347723107,1736081438805,-500.0,0.00019726,3]
[347723109,1736081438817,-1900.51,0.00019726,3]
[347723111,1736081438828,-500.0,0.00019726,3]
[347723114,1736081438840,-1003.49,0.00019726,3]
[347723116,1736081438852,-500.0,0.00019726,3]
[347723118,1736081438864,-500.0,0.00019726,3]
[347723120,1736081438876,-500.0,0.00019726,3]
[347723122,1736081438886,-631.91,0.00019726,3]
[347723125,1736081438898,-520.75,0.00019726,3]
[347723127,1736081438910,-821.15,0.00019726,3]
[347723129,1736081438922,-911.66,0.00019726,3]
[347723131,1736081438933,-500.0,0.00019726,3]
[347723134,1736081438946,-500.0,0.00019726,3]
[347723136,1736081438957,-500.0,0.00019726,3]
[347723138,1736081438967,-500.0,0.00019726,3]
[347723140,1736081438977,-500.0,0.00019726,3]
[347723142,1736081438987,-500.0,0.00019726,3]
[347723144,1736081438997,-502.91497246,0.00019728,2]
[347723147,1736081439008,-1200.0,0.00019732,2]
[347723149,1736081439020,-172.00637642,0.00019773,2]
[347723151,1736081439031,-500.0,0.00019773,2]
[347723153,1736081439045,-10630.55,0.000198,2]
[347723156,1736081439057,-13830.86,0.000198,2]
[347723158,1736081439068,-352.8433746,0.00019863,2]
[347723160,1736081439078,-352.8433746,0.00019863,2]
[347723162,1736081439089,-352.5032232,0.00019863,2]